bitfinex-derivatives/quotes_ETHF0:USTF0_20240822
["timestamp","ask_amount","ask_price","bid_price","bid_amount"]
[1724354130225,5.51092,2609.5,2609.2,1.38]
[1724354131625,1.38,2609.4,2609.1,0.38316]
[1724354132334,3.59095,2609.3,2609.0,2.38689095]
[1724354132626,1.38,2609.1,2609.0,0.00449174]
[1724354133021,1.76317,2609.1,2609.0,0.00449174]
[1724354133224,4.42597,2609.1,2609.0,0.00449174]
[1724354133424,4.0428,2609.1,2609.0,0.00449174]
[1724354134928,2.6628,2609.1,2609.0,0.00449174]
[1724354142531,2.6628,2609.1,2609.0,1.76767174]
[1724354142727,1.3029,2609.2,2609.1,0.38317]
[1724354146442,0.00575153,2609.3,2609.2,0.38315]
[1724354146739,0.00575153,2609.3,2609.2,1.76315]
[1724354146935,0.00575153,2609.3,2609.2,12.51173]
[1724354147135,0.00575153,2609.3,2609.2,14.82812921]
[1724354147530,0.00575153,2609.3,2609.2,8.87023921]
[1724354149141,0.00575153,2609.3,2609.2,6.90995]
[1724354150842,0.00575153,2609.3,2609.2,1.76315]
[1724354151042,0.38889153,2609.3,2609.1,2.38239921]
[1724354151335,5.50456,2609.2,2609.0,1.00689095]
[1724354151533,5.50456,2609.2,2609.0,0.00449174]
[1724354151733,0.38317,2609.1,2609.0,0.00449174]
[1724354152240,5.50456,2609.2,2609.0,0.00449174]
[1724354152432,0.38317,2609.1,2609.0,0.00449174]
[1724354152632,1.76317,2609.1,2609.0,0.00449174]
[1724354153139,5.50456,2609.2,2609.0,0.00449174]
[1724354153342,3.7414,2609.2,2609.0,0.00449174]
[1724354153638,3.7414,2609.2,2609.1,1.38]
[1724354154039,4.12455,2609.2,2609.1,1.38]
[1724354154234,4.12455,2609.2,2609.0,0.00449174]
[1724354155935,3.7414,2609.2,2609.0,0.00449174]
[1724354160246,3.2078,2609.1,2609.0,0.00449174]
[1724354161243,4.12455,2609.2,2609.0,0.00449174]
[1724354161847,3.7414,2609.2,2609.0,0.38767174]
[1724354162045,3.7414,2609.2,2609.0,0.00449174]
[1724354162441,3.2078,2609.1,2609.0,0.00449174]
[1724354162645,7.42377,2609.1,2609.0,0.00449174]
[1724354164144,4.21597,2609.1,2609.0,0.00449174]
[1724354164345,3.8328,2609.1,2609.0,0.00449174]
[1724354165055,4.12456,2609.2,2609.0,0.00449174]
[1724354165056,3.7414,2609.2,2609.0,0.00449174]
[1724354165248,3.7414,2609.2,2609.0,0.38766174]
[1724354165436,3.7414,2609.2,2609.0,0.38767174]
[1724354165947,3.7414,2609.2,2609.1,0.38317]
[1724354169743,3.7414,2609.2,2609.0,0.38766174]
[1724354170044,3.7414,2609.2,2609.0,0.00449174]
[1724354170446,4.12456,2609.2,2609.0,0.00449174]
[1724354170745,4.12456,2609.2,2609.0,0.38767174]
[1724354170945,4.12456,2609.2,2609.0,0.00449174]
[1724354171151,4.12456,2609.2,2609.0,0.38767174]
[1724354171340,3.7414,2609.2,2609.0,0.38767174]
[1724354171548,3.7414,2609.2,2609.1,0.38317]
[1724354171740,0.00575153,2609.3,2609.0,0.00449174]
[1724354171741,0.00575153,2609.3,2609.2,0.38315]
[1724354172451,0.00575153,2609.3,2609.2,4.21595]
[1724354173650,0.00575153,2609.3,2609.2,7.42375]
[1724354174055,0.00575153,2609.3,2609.2,3.59095]
[1724354174551,0.00575153,2609.3,2609.2,3.2078]
[1724354174755,0.00575153,2609.3,2609.1,1.00239921]
[1724354174950,0.38890153,2609.3,2609.1,1.00239921]
[1724354175151,0.38890153,2609.3,2609.0,1.89585225]
[1724354175152,0.38889153,2609.3,2609.0,1.00689095]
[1724354175356,0.38315,2609.2,2609.0,1.00689095]
[1724354175550,0.00575153,2609.3,2609.0,0.00449174]
[1724354175551,1.2751,2609.1,2609.0,0.00449174]
[1724354175857,0.00575153,2609.3,2609.0,1.00689095]
[1724354176155,0.00575153,2609.3,2609.1,1.38555921]
[1724354176855,0.00575153,2609.3,2609.2,2.76554921]
[1724354177159,0.00575153,2609.3,2609.2,6.59834921]
[1724354178355,0.00575153,2609.3,2609.2,2.76554921]
[1724354178654,0.00575153,2609.3,2609.2,6.59834921]
[1724354178861,0.00575153,2609.3,2609.2,7.90394921]
[1724354179062,0.00575153,2609.3,2609.2,8.86183921]
[1724354179358,4.103,2609.6,2609.5,0.38311]
[1724354179555,4.103,2609.6,2609.5,1.76311]
[1724354179857,4.103,2609.6,2609.5,5.59511]
[1724354180061,4.103,2609.6,2609.5,1.68871]
[1724354180249,5.3372,2609.6,2609.5,1.68871]
[1724354181754,1.2342,2609.6,2609.5,1.68871]
[1724354182852,1.2342,2609.6,2609.5,0.38311]
[1724354183054,1.2342,2609.6,2609.3,1.00430197]
[1724354183260,1.2441,2609.5,2609.3,1.00430197]
[1724354183561,1.2441,2609.5,2609.2,2.72124197]
[1724354183749,1.2441,2609.5,2609.3,0.38314]
[1724354185858,1.2441,2609.5,2609.2,1.38744197]
[1724354186854,3.2078,2609.4,2609.1,1.38746197]
[1724354187062,1.2673,2609.3,2609.1,1.38746197]
[1724354187253,2.559,2609.3,2609.1,0.38316]
[1724354187756,2.559,2609.3,2609.2,0.38315]
[1724354188863,2.559,2609.3,2609.1,0.38316]
[1724354189248,2.559,2609.3,2609.2,0.38315]
[1724354189453,2.559,2609.3,2609.1,1.38745197]
[1724354190358,2.559,2609.3,2609.1,0.38315]
[1724354190668,2.559,2609.3,2609.1,0.38317]
[1724354191359,2.559,2609.3,2609.2,0.38315]
[1724354192154,2.559,2609.3,2609.1,0.38316]
[1724354192661,2.559,2609.3,2609.2,0.38315]
[1724354193360,1.2673,2609.3,2609.2,4.21595]
[1724354193548,1.2673,2609.3,2609.2,0.38315]
[1724354193953,1.2673,2609.3,2609.2,4.21595]
[1724354195654,1.2441,2609.5,2609.2,3.8328]
[1724354195967,2.5931,2609.6,2609.4,0.38312]
[1724354196166,1.3023,2609.6,2609.5,0.38311]
[1724354196466,1.29655153,2609.8,2609.7,0.38308]
[1724354198261,1.29655153,2609.8,2609.7,4.21508]
[1724354198461,0.00575153,2609.8,2609.7,4.21508]
[1724354198768,0.00575153,2609.8,2609.7,15.94983813]
[1724354199061,6.59276895,2610.6,2609.7,15.94983813]
[1724354199062,3.7253,2610.5,2610.2,0.38299]
[1724354199271,3.7253,2610.5,2609.7,20.86124392]
[1724354199272,3.7253,2610.5,2610.0,4.21105122]
[1724354199467,3.7253,2610.5,2610.1,0.38302]
[1724354199763,3.7253,2610.5,2610.1,1.70282]
[1724354200164,3.7253,2610.5,2610.2,0.383]
[1724354200959,3.7253,2610.5,2610.1,1.70281]
[1724354202065,3.7253,2610.5,2610.2,0.383]
[1724354202250,3.7253,2610.5,2610.1,1.3198]
[1724354202456,3.7253,2610.5,2610.2,0.383]
[1724354204058,0.38298,2610.4,2610.0,3.2078]
[1724354204259,0.38298,2610.4,2609.8,1.3392]
[1724354204463,3.7253,2610.5,2610.1,0.38302]
[1724354204464,4.10827,2610.5,2610.1,0.38302]
[1724354205363,3.7253,2610.5,2610.3,0.38299]
[1724354206358,3.7253,2610.5,2610.0,3.2078]
[1724354206756,3.7253,2610.5,2610.4,0.38298]
[1724354207769,3.7253,2610.5,2610.3,0.38298]
[1724354208873,4.10827,2610.5,2610.2,0.38299]
[1724354209073,0.38298,2610.4,2610.1,0.38301]
[1724354210170,4.10827,2610.5,2610.1,0.38301]
[1724354210965,3.7253,2610.5,2610.1,0.38301]
[1724354211368,4.10827,2610.5,2610.1,0.38301]
[1724354212062,4.10827,2610.5,2610.2,0.383]
[1724354212569,4.10827,2610.5,2610.1,0.38301]
[1724354214170,4.10827,2610.5,2610.0,3.2078]
[1724354214374,3.7253,2610.5,2610.2,0.383]
[1724354214771,4.10826,2610.5,2610.2,0.383]
[1724354215273,4.10826,2610.5,2610.1,0.38301]
[1724354215775,3.7253,2610.5,2610.1,0.38301]
[1724354215976,0.38298,2610.4,2610.1,0.38301]
[1724354216283,4.10826,2610.5,2610.1,0.38301]
[1724354216577,1.38,2610.4,2610.1,1.76301]
[1724354217169,1.38,2610.4,2610.1,1.38]
[1724354217374,1.38,2610.4,2610.1,1.76301]
[1724354218271,1.38,2610.4,2610.2,0.383]
[1724354221477,1.38,2610.4,2610.1,1.76301]
[1724354221778,1.38,2610.4,2610.2,0.383]
[1724354223071,1.38,2610.4,2610.3,0.38299]
[1724354224283,1.38,2610.4,2610.2,0.383]
[1724354224483,1.38,2610.4,2610.0,4.5878]
[1724354224484,1.38,2610.4,2610.3,0.38299]
[1724354224671,3.7253,2610.5,2610.4,0.38297]
[1724354225376,3.7253,2610.5,2610.4,1.76297]
[1724354227477,3.7253,2610.5,2610.4,0.38297]
[1724354230492,3.7253,2610.5,2610.4,1.76297]
[1724354232397,3.7253,2610.5,2610.3,3.59077]
[1724354232685,3.7253,2610.5,2610.4,0.38297]
[1724354233503,3.7253,2610.5,2610.3,3.59078]
[1724354233692,3.7253,2610.5,2610.4,0.38297]
[1724354233999,3.7253,2610.5,2610.3,3.59078]
[1724354234502,3.7253,2610.5,2610.3,3.2078]
[1724354234694,3.7253,2610.5,2610.3,3.59078]
[1724354234888,1.38,2610.4,2610.2,0.383]
[1724354235896,5.1053,2610.5,2610.2,0.383]
[1724354238904,5.1053,2610.5,2610.3,0.38299]
[1724354239106,5.1053,2610.5,2610.2,0.38299]
[1724354239401,5.1053,2610.5,2610.3,0.38299]
[1724354242603,1.76299,2610.4,2610.2,1.00325122]
[1724354242811,5.2112,2610.4,2610.1,1.00325122]
[1724354242996,5.2112,2610.4,2610.1,0.38301]
[1724354243613,5.2112,2610.4,2610.2,0.383]
[1724354244014,6.59803895,2610.5,2610.3,0.38299]
[1724354244015,7.59506895,2610.5,2610.3,0.38299]
[1724354244310,7.59506895,2610.5,2610.3,1.76299]
[1724354244311,6.21506895,2610.5,2610.3,1.76299]
[1724354244513,6.21506895,2610.5,2610.3,1.38]
[1724354244514,3.7253,2610.5,2610.3,1.38]
[1724354244813,3.7253,2610.5,2610.3,2.38325122]
[1724354245408,4.10826,2610.5,2610.3,2.38325122]
[1724354245617,3.7253,2610.5,2610.3,2.38325122]
[1724354245916,3.7253,2610.5,2610.3,0.38299]
[1724354246420,3.86976895,2610.4,2610.1,1.38627122]
[1724354246613,7.07756895,2610.3,2609.9,1.00325122]
[1724354246816,3.86976895,2610.1,2609.7,1.00325122]
[1724354247116,3.86976895,2610.1,2609.5,1.00325122]
[1724354247117,2.48976895,2609.8,2609.5,1.00325122]
[1724354247417,2.6223,2609.7,2609.4,0.38312]
[1724354247619,2.5727,2609.6,2609.4,0.38312]
[1724354247917,2.5727,2609.6,2609.3,1.38]
[1724354248304,2.5727,2609.6,2609.1,1.00325122]
[1724354248305,4.5878,2609.4,2609.1,1.00325122]
[1724354248507,1.2537,2609.3,2609.0,1.38449174]
[1724354248706,2.4879,2609.2,2609.1,0.38315]
[1724354249714,2.4879,2609.2,2609.1,1.76315]
[1724354250418,2.4879,2609.2,2609.1,0.38315]
[1724354251713,1.2537,2609.3,2609.2,0.38315]
[1724354261426,10.0865,2609.3,2609.0,0.00449174]
[1724354261612,3.59097,2609.1,2609.0,0.00449174]
[1724354262129,7.42377,2609.1,2609.0,0.00449174]
[1724354264621,2.6013,2609.2,2609.1,0.38317]
[1724354267420,2.6013,2609.2,2609.0,0.38766174]
[1724354268628,6.4341,2609.2,2609.0,0.00449174]
[1724354269033,6.4341,2609.2,2609.0,0.38766174]
[1724354269221,6.4341,2609.2,2609.1,0.38317]
[1724354269427,2.6013,2609.2,2609.1,0.38317]
[1724354278733,6.81725,2609.2,2609.1,0.38317]
[1724354279241,6.81725,2609.2,2609.0,0.00449174]
[1724354279242,6.81725,2609.2,2609.0,0.38766174]
[1724354279534,2.98445,2609.2,2609.1,0.38317]
[1724354279741,2.6013,2609.2,2609.1,0.38317]
[1724354280039,2.6013,2609.2,2609.1,1.34109]
[1724354280234,2.6013,2609.2,2609.1,0.38317]
[1724354284748,2.98445,2609.2,2609.1,0.38317]
[1724354284937,0.38317,2609.1,2609.0,0.38766174]
[1724354285442,2.98446,2609.2,2609.1,0.38317]
[1724354285937,2.6013,2609.2,2609.1,0.38317]
[1724354286544,3.2078,2609.4,2609.3,0.38314]
[1724354289149,4.5098,2609.5,2609.4,0.38312]
[1724354290438,3.2078,2609.5,2609.4,0.38312]
[1724354292645,3.59091,2609.5,2609.4,0.38312]
[1724354292845,0.38313,2609.4,2609.3,0.38313]
[1724354293044,1.61343,2609.4,2609.3,0.38313]
[1724354293233,5.0623,2609.4,2609.3,0.38313]
[1724354294348,0.38316,2609.2,2609.1,0.38316]
[1724354294847,4.21596,2609.2,2609.1,0.38316]
[1724354295045,3.8328,2609.2,2609.1,0.38316]
[1724354295446,3.05066,2609.2,2609.0,0.38766174]
[1724354295653,1.2919,2609.1,2609.0,0.38766174]
[1724354296852,2.6675,2609.2,2609.1,0.38317]
[1724354301646,2.6675,2609.2,2609.1,1.64267]
[1724354303248,2.6675,2609.2,2609.1,0.38317]
[1724354304744,2.6675,2609.2,2609.0,4.21548086]
[1724354304943,1.3159,2609.1,2609.0,0.38766174]
[1724354305951,0.95778,2609.5,2609.1,0.38317]
[1724354305952,2.4960447,2609.5,2609.1,0.38317]
[1724354306152,1.3074,2609.4,2609.3,0.38314]
[1724354306657,8.3335447,2609.6,2609.5,0.38311]
[1724354306955,7.1449,2609.6,2609.5,0.38311]
[1724354307456,7.1449,2609.6,2609.1,3.68599368]
[1724354307457,10.0240347,2609.6,2609.1,3.18439912]
[1724354307651,7.1449,2609.6,2609.5,0.38311]
[1724354308154,7.52799,2609.6,2609.5,0.38311]
[1724354308550,7.52799,2609.6,2609.1,3.18439912]
[1724354308551,0.38312,2609.5,2609.1,1.00318912]
[1724354308747,0.38314,2609.4,2609.1,1.00318912]
[1724354308947,0.38314,2609.4,2609.3,0.38314]
[1724354310242,2.4960447,2609.5,2609.2,0.38314]
[1724354310442,3.2078,2609.3,2609.2,0.38314]
[1724354312264,3.59094,2609.3,2609.1,1.38634912]
[1724354312450,2.6553,2609.2,2609.1,1.38634912]
[1724354313759,2.6553,2609.2,2609.1,0.38316]
[1724354314060,1.34109,2609.1,2609.0,0.00449174]
[1724354314461,7.6699347,2609.1,2609.0,0.00449174]
[1724354314665,6.7120147,2609.1,2609.0,0.00449174]
[1724354315262,6.7120147,2609.1,2608.3,1.50478368]
[1724354315263,0.9581,2608.6,2608.3,1.50478368]
[1724354315470,3.2078,2608.4,2607.9,1.00550595]
[1724354315668,6.09112211,2608.0,2607.7,0.38337]
[1724354315962,1.2857,2607.9,2607.7,0.38337]
[1724354316367,1.2857,2607.9,2607.7,0.00314233]
[1724354316368,1.2895318,2607.9,2607.7,0.00314233]
[1724354316568,0.38336,2607.8,2607.7,0.00314233]
[1724354316865,0.38336,2607.8,2607.5,0.00575153]
[1724354316866,0.38339,2607.6,2607.5,0.00575153]
[1724354317063,3.2078,2607.6,2607.5,0.00575153]
[1724354317264,7.043,2607.6,2607.2,0.38344]
[1724354317571,3.2078,2607.6,2607.2,0.38344]
[1724354317864,3.2078,2607.6,2607.2,0.00420033]
[1724354318068,3.2078,2607.6,2607.2,0.38764033]
[1724354318759,3.2078,2607.6,2607.2,0.00420033]
[1724354319063,3.2078,2607.6,2607.2,0.38764033]
[1724354321954,3.59119,2607.6,2607.2,0.38764033]
[1724354322359,3.2078,2607.6,2607.2,0.38764033]
[1724354323969,3.2078,2607.6,2607.3,0.38343]
[1724354325363,3.2078,2607.6,2607.4,0.38341]
[1724354325963,3.2078,2607.6,2607.5,0.3834]
[1724354326170,1.70116,2607.8,2607.5,0.3834]
[1724354326361,1.3178,2607.8,2607.6,0.38338]
[1724354327060,1.70116,2607.8,2607.6,0.38338]
[1724354327973,1.2355,2607.7,2607.6,0.38338]
[1724354328871,1.61887,2607.7,2607.6,0.38338]
[1724354329261,1.2355,2607.7,2607.6,0.38338]
[1724354329968,5.0707,2607.7,2607.6,0.38338]
[1724354330167,0.38341,2607.5,2607.3,0.38342]
[1724354330466,13.2785,2607.7,2607.2,0.00420033]
[1724354330467,4.93972,2607.4,2607.2,0.00420033]
[1724354330671,4.93972,2607.4,2607.3,0.38343]
[1724354330672,1.3485,2607.4,2607.3,0.38343]
[1724354331760,1.3485,2607.4,2607.3,4.21863]
[1724354332368,1.3485,2607.4,2607.3,0.38343]
[1724354336265,5.7778,2607.7,2607.5,0.3834]
[1724354336469,5.7778,2607.7,2607.3,1.3518]
[1724354336767,5.7778,2607.7,2607.6,0.38339]
[1724354337168,6.16117,2607.7,2607.6,0.38339]
[1724354338377,5.7778,2607.7,2607.6,0.38339]
[1724354338869,2.57,2607.7,2607.6,0.38339]
[1724354340274,5.7778,2607.7,2607.6,0.38339]
[1724354340776,6.16118,2607.7,2607.6,0.38339]
[1724354341573,5.7778,2607.7,2607.6,0.38339]
[1724354341773,6.16117,2607.7,2607.6,0.38339]
[1724354342280,6.16117,2607.7,2607.3,1.3518]
[1724354342576,6.16117,2607.7,2607.6,0.38339]
[1724354342577,5.7778,2607.7,2607.6,0.38339]
[1724354342774,3.2078,2607.7,2607.6,0.38339]
[1724354342981,0.00958333,2607.9,2607.8,0.38336]
[1724354342982,1.35428333,2607.9,2607.8,0.38336]
[1724354344378,1.73762333,2607.9,2607.8,0.38336]
[1724354344786,0.38336,2607.8,2607.7,0.38336]
[1724354345168,0.38338,2607.7,2607.6,0.38338]
[1724354345368,0.38339,2607.6,2607.5,0.3834]
[1724354345665,8.304,2607.6,2607.2,0.00420033]
[1724354345969,0.38342,2607.4,2607.2,0.38763033]
[1724354346179,1.3064,2607.3,2607.2,0.38763033]
[1724354347882,1.3064,2607.3,2607.2,0.00420033]
[1724354348277,1.3064,2607.3,2607.2,0.38764033]
[1724354348981,4.89763,2607.3,2607.2,0.00420033]
[1724354349773,8.73283,2607.3,2607.2,0.00420033]
[1724354351074,12.62098,2607.3,2606.6,0.38352]
[1724354351277,3.59131,2606.8,2606.5,0.38354]
[1724354351477,3.5913,2606.8,2606.5,0.38354]
[1724354351673,2.5809,2606.7,2606.5,0.38354]
[1724354352175,2.5809,2606.7,2606.5,0.38697214]
[1724354352781,0.38353,2606.6,2606.5,0.00343214]
[1724354352973,1.70413,2606.6,2606.5,0.00343214]
[1724354353173,1.3206,2606.6,2606.5,0.00343214]
[1724354353376,1.3206,2606.6,2606.5,0.38698214]
[1724354355186,1.3206,2606.6,2606.5,0.00343214]
[1724354355381,1.3206,2606.6,2606.5,0.38698214]
[1724354355983,1.3206,2606.6,2606.5,0.00343214]
[1724354356185,1.70413,2606.6,2606.5,0.00343214]
[1724354356483,1.3206,2606.6,2606.5,0.00343214]
[1724354357585,1.3206,2606.6,2606.5,0.38698214]
[1724354360382,1.3206,2606.6,2606.5,0.00343214]
[1724354360783,1.3206,2606.6,2606.5,0.38698214]
[1724354361988,5.54093,2606.6,2606.5,0.00343214]
[1724354363394,0.38356,2606.4,2606.3,0.00575153]
[1724354363590,3.59136,2606.4,2606.3,0.00575153]
[1724354364483,3.2078,2606.4,2606.3,0.01026808]
[1724354364687,3.2078,2606.4,2606.3,0.39384808]
[1724354365790,1.3206,2606.6,2606.5,0.38355]
[1724354365988,2.5809,2606.7,2606.6,0.38353]
[1724354366992,2.96443,2606.7,2606.5,0.38354]
[1724354367494,2.5809,2606.7,2606.6,0.38353]
[1724354369095,2.96442,2606.7,2606.6,0.38353]
[1724354369996,2.96442,2606.7,2606.3,0.01026808]
[1724354369997,10.11342,2606.7,2606.3,0.01026808]
[1724354370193,3.2078,2606.5,2605.5,1.00550595]
[1724354370396,6.5208,2606.0,2605.9,0.38364]
[1724354370789,3.313,2606.0,2605.9,0.38364]
[1724354371101,1.2374,2606.1,2606.0,0.38362]
[1724354371296,1.24192288,2606.1,2606.0,0.38362]
[1724354372396,0.00452288,2606.1,2606.0,0.38362]
[1724354372592,0.00452288,2606.1,2606.0,4.22122]
[1724354372797,0.00452288,2606.1,2606.0,10.03012]
[1724354373599,0.00452288,2606.1,2606.0,15.03012]
[1724354373892,0.00575153,2606.2,2606.1,0.38361]
[1724354374095,0.00575153,2606.2,2606.1,4.22041]
[1724354374287,0.00575153,2606.2,2605.9,0.00296358]
[1724354374488,0.00575153,2606.2,2605.9,0.38659358]
[1724354374691,1.34715326,2606.2,2605.9,0.38659358]
[1724354374894,1.34715326,2606.2,2605.9,0.00296358]
[1724354375302,1.34715326,2606.2,2605.9,0.38659358]
[1724354376295,1.34715326,2606.2,2605.9,0.00296358]
[1724354376596,1.34715326,2606.2,2606.0,0.38362]
[1724354376597,0.00855326,2606.2,2606.0,0.38362]
[1724354376794,0.00855326,2606.2,2606.0,4.22042]
[1724354376998,0.00855326,2606.2,2606.1,0.38361]
[1724354377192,0.00855326,2606.2,2605.9,0.00296358]
[1724354377193,0.39215326,2606.2,2605.9,0.00296358]
[1724354377597,2.5988,2606.1,2605.9,0.00296358]
[1724354377793,6.19021,2606.1,2605.9,0.00296358]
[1724354378104,5.8066,2606.1,2605.9,0.00296358]
[1724354379300,2.98241,2606.1,2605.9,0.00296358]
[1724354379492,5.8066,2606.1,2605.9,0.00296358]
[1724354380996,0.00855326,2606.2,2605.9,0.00296358]
[1724354381196,0.00855326,2606.2,2606.1,0.38361]
[1724354382991,0.00855326,2606.2,2606.1,3.59141]
[1724354384002,0.00855326,2606.2,2606.1,9.22041]
[1724354384500,0.00855326,2606.2,2606.1,10.56151]
[1724354385204,1.3403,2606.9,2606.2,0.95899]
[1724354385394,3.313,2607.3,2606.2,0.95899]
[1724354385395,1.3269,2607.2,2606.8,0.3835]
[1724354385596,1.3269,2607.2,2606.7,3.2078]
[1724354385796,1.3269,2607.2,2607.0,0.38347]
[1724354386200,1.33155293,2607.2,2607.0,4.21947]
[1724354386609,1.33155293,2607.2,2607.1,0.38346]
[1724354386801,0.00465293,2607.2,2607.1,0.38346]
[1724354387002,0.00202568,2607.2,2607.1,9.21946]
[1724354388497,0.00202568,2607.2,2607.1,4.21946]
[1724354389200,0.00202568,2607.2,2607.1,9.21946]
[1724354394001,0.00202568,2607.2,2607.1,4.21946]
[1724354396205,0.00202568,2607.2,2607.1,9.21946]
[1724354396406,0.00202568,2607.2,2607.1,4.21946]
[1724354398099,0.00202568,2607.2,2607.1,9.21946]
[1724354398603,0.00202568,2607.2,2607.1,4.21946]
[1724354398905,0.00202568,2607.2,2607.1,10.17812]
[1724354400405,0.00202568,2607.2,2607.1,5.17812]
[1724354400602,0.00202568,2607.2,2607.1,4.21946]
[1724354400802,0.00202568,2607.2,2607.1,0.38346]
[1724354402212,0.00202568,2607.2,2607.1,4.21946]
[1724354402519,0.00202568,2607.2,2607.1,0.38346]
[1724354402703,0.00202568,2607.2,2607.1,4.21946]
[1724354404106,0.00202568,2607.2,2607.1,0.38346]
[1724354404826,0.00202568,2607.2,2607.1,4.21946]
[1724354406508,0.00202568,2607.2,2607.1,10.55846]
[1724354407016,0.00202568,2607.2,2607.1,0.38346]
[1724354408619,0.00202568,2607.2,2607.1,9.21946]
[1724354408823,0.00202568,2607.2,2607.1,4.21946]
[1724354409207,0.00202568,2607.2,2607.1,5.17812]
[1724354409520,0.00202568,2607.2,2607.1,6.43872]
[1724354409906,0.00202568,2607.2,2607.1,11.43872]
[1724354411619,0.00202568,2607.2,2607.1,4.21946]
[1724354412018,0.00202568,2607.2,2607.0,3.2078]
[1724354412019,0.00202568,2607.2,2606.8,0.00575153]
[1724354412327,0.00202568,2607.2,2606.9,0.38348]
[1724354412516,0.00202568,2607.2,2606.8,0.00575153]
[1724354412517,0.38548568,2607.2,2606.8,0.38925153]
[1724354412721,2.5449,2607.1,2606.8,0.38925153]
[1724354412910,3.8033,2607.1,2606.8,0.38925153]
[1724354413920,3.2078,2606.9,2606.8,0.00575153]
[1724354414317,3.836,2606.9,2606.8,0.00575153]
[1724354414518,4.18677,2607.1,2606.8,0.00575153]
[1724354414825,3.8033,2607.1,2606.8,0.00575153]
[1724354415022,3.8033,2607.1,2606.8,0.38925153]
[1724354416218,3.8033,2607.1,2606.8,0.00575153]
[1724354416419,3.8033,2607.1,2606.8,0.38925153]
[1724354416820,3.8033,2607.1,2606.9,0.38349]
[1724354417830,7.6393,2607.1,2606.9,0.38349]
[1724354419031,8.02276,2607.1,2606.9,0.38349]
[1724354420130,0.38348,2607.0,2606.8,0.38924153]
[1724354420431,0.38349,2607.0,2606.8,0.38925153]
[1724354420631,4.18677,2607.1,2606.9,0.38349]
[1724354421524,0.38348,2607.0,2606.8,0.38925153]
[1724354422424,0.38349,2606.9,2606.8,0.00575153]
[1724354422621,4.55002,2606.9,2606.8,0.00575153]
[1724354422821,3.59129,2606.9,2606.8,0.00575153]
[1724354424438,0.38353,2606.7,2606.6,0.38354]
[1724354424629,0.38353,2606.7,2606.2,0.95899]
[1724354424630,0.38353,2606.7,2606.5,0.38354]
[1724354424925,2.98214,2606.6,2606.5,0.38354]
[1724354425130,2.5986,2606.6,2606.5,0.38354]
[1724354427727,2.5986,2606.6,2606.4,0.38355]
[1724354428224,2.5986,2606.6,2606.5,0.38355]
[1724354428427,2.5986,2606.6,2606.4,0.38355]
[1724354429523,2.5986,2606.6,2606.4,0.38356]
[1724354430929,2.5986,2606.6,2606.5,0.38355]
[1724354431427,2.5986,2606.6,2606.4,0.38356]
[1724354433832,2.5986,2606.6,2606.5,0.38355]
[1724354434133,1.2504,2606.7,2606.6,0.38354]
[1724354434335,1.2504,2606.7,2606.6,1.34239]
[1724354434731,1.2504,2606.7,2606.6,0.38354]
[1724354435821,2.595,2607.1,2606.6,4.21954]
[1724354436131,3.9355,2607.1,2606.7,1.3413]
[1724354436331,4.31897,2607.1,2606.9,0.38348]
[1724354437035,4.31897,2607.1,2607.0,0.38348]
[1724354437931,0.38348,2607.0,2606.9,0.38349]
[1724354438329,0.38348,2607.0,2606.5,4.16667]
[1724354438730,0.38348,2607.0,2606.9,0.38349]
[1724354439338,4.31897,2607.1,2606.9,0.38349]
[1724354440235,4.31897,2607.1,2607.0,0.38348]
[1724354440433,0.38348,2607.0,2606.9,0.38348]
[1724354440635,0.38349,2607.0,2606.8,0.38349]
[1724354440828,3.9355,2607.1,2606.6,0.95885]
[1724354441039,3.9355,2607.1,2606.5,3.2078]
[1724354441536,3.9355,2607.1,2607.0,0.38348]
[1724354441741,8.15496,2607.1,2607.0,0.38348]
[1724354443040,0.38348,2607.0,2606.9,0.38348]
[1724354444742,0.38348,2607.0,2606.9,0.38349]
[1724354446043,4.31896,2607.1,2607.0,0.38348]
[1724354446345,3.9355,2607.1,2607.0,0.38348]
[1724354446731,1.3405,2607.1,2607.0,4.54998]
[1724354446938,1.3405,2607.1,2607.0,0.38348]
[1724354447239,1.3405,2607.1,2606.9,0.38349]
[1724354447240,0.38349,2607.0,2606.9,0.38349]
[1724354447546,1.73939,2607.0,2606.9,0.38349]
[1724354448541,1.3559,2607.0,2606.9,0.38349]
[1724354452140,1.73939,2607.0,2606.7,1.69451]
[1724354452345,1.73939,2607.0,2606.8,0.3835]
[1724354452539,1.73939,2607.0,2606.5,3.65400595]
[1724354452540,1.73939,2607.0,2606.7,0.38351]
[1724354453043,0.38349,2606.9,2606.7,0.38351]
[1724354453345,1.3559,2607.0,2606.7,0.38351]
[1724354453346,1.73938,2607.0,2606.7,0.38351]
[1724354453545,1.3559,2607.0,2606.8,0.3835]
[1724354453848,1.3559,2607.0,2606.5,2.35800595]
[1724354453849,1.3559,2607.0,2606.9,0.38349]
[1724354454749,1.3559,2607.0,2606.6,1.3545]
[1724354454750,1.3559,2607.0,2606.8,0.3835]
[1724354454945,1.3559,2607.0,2606.9,0.38349]
[1724354455141,1.3559,2607.0,2606.8,0.3835]
[1724354455345,1.73938,2607.0,2606.6,1.3545]
[1724354455557,1.73938,2607.0,2606.7,0.38351]
[1724354456040,1.73938,2607.0,2606.8,0.3835]
[1724354456041,1.3559,2607.0,2606.8,0.3835]
[1724354456241,1.3559,2607.0,2606.6,1.3545]
[1724354456444,1.3559,2607.0,2606.9,0.38349]
[1724354457444,1.3405,2607.1,2607.0,0.38348]
[1724354458441,1.3405,2607.1,2606.8,1.00550595]
[1724354458642,1.3405,2607.1,2606.6,0.38353]
[1724354458643,0.38351,2606.8,2606.6,0.38353]
[1724354458842,1.316,2606.7,2606.6,0.38353]
[1724354460351,1.2386,2606.8,2606.7,0.38352]